bitfinex/quotes_BTCUSD_20250825
["timestamp","ask_amount","ask_price","bid_price","bid_amount"]
[1756155183050,0.0083348,109950.0,109940.0,0.46580642]
[1756155183265,0.000144,109950.0,109940.0,1.62286596]
[1756155183486,0.0004,109960.0,109950.0,0.19934988]
[1756155183745,0.0004,109980.0,109970.0,0.18186778]
[1756155183956,0.0004,109980.0,109970.0,0.3926268]
[1756155184424,0.0004,109980.0,109970.0,0.3956768]
[1756155184647,0.00087998,109980.0,109970.0,0.3956368]
[1756155184869,0.00087998,109980.0,109970.0,0.2043968]
[1756155185081,0.00087998,109980.0,109970.0,1.56069634]
[1756155185296,0.00087998,109980.0,109970.0,1.55669634]
[1756155185514,0.0004,110010.0,110000.0,0.1765472]
[1756155185731,0.0004,110010.0,110000.0,0.4398572]
[1756155186159,0.00054396,110010.0,110000.0,0.4429072]
[1756155186587,0.00054396,110010.0,110000.0,0.4398572]
[1756155187059,0.00054396,110010.0,110000.0,0.4429072]
[1756155187267,0.00054396,110010.0,110000.0,0.2516672]
[1756155187493,0.00054396,110010.0,110000.0,0.4604272]
[1756155187704,0.00054396,110010.0,110000.0,0.08748902]
[1756155187916,0.18441561,110010.0,110000.0,0.26216]
[1756155188130,0.22436875,110010.0,110000.0,0.07104]
[1756155188351,0.56436875,110010.0,110000.0,0.19212]
[1756155188596,0.56436875,110010.0,110000.0,0.002]
[1756155188813,0.52185124,109980.0,109970.0,0.071]
[1756155189027,0.52695124,109980.0,109970.0,0.001]
[1756155189674,0.53815868,109980.0,109970.0,0.001]
[1756155189919,0.54118868,109980.0,109970.0,0.001]
[1756155190954,0.54218868,109980.0,109970.0,0.001]
[1756155191380,0.54118868,109980.0,109970.0,0.001]
[1756155191591,0.53395124,109980.0,109970.0,0.001]
[1756155191795,0.60753124,109980.0,109970.0,0.001]
[1756155192209,0.53395124,109980.0,109970.0,0.001]
[1756155193265,0.54395124,109980.0,109970.0,0.001]
[1756155193481,0.53095124,109980.0,109970.0,0.001]
[1756155193684,0.52781276,109980.0,109970.0,0.001]
[1756155193899,0.53081276,109980.0,109970.0,0.001]
[1756155194317,0.52631276,109980.0,109970.0,0.001]
[1756155194694,0.52531276,109980.0,109970.0,0.001]
[1756155194900,0.52931276,109980.0,109970.0,0.001]
[1756155195335,0.54355028,109980.0,109970.0,0.001]
[1756155195544,0.54052028,109980.0,109970.0,0.001]
[1756155195958,0.53845028,109980.0,109970.0,0.001]
[1756155196171,0.61158018,109980.0,109970.0,0.001]
[1756155196586,0.61458018,109980.0,109970.0,0.001]
[1756155197420,0.80546018,109980.0,109970.0,0.001]
[1756155197630,0.80546018,109980.0,109940.0,0.07]
[1756155197631,0.18190086,109950.0,109940.0,0.07]
[1756155197838,0.5219174,109940.0,109930.0,0.07253275]
[1756155198046,0.59457623,109940.0,109930.0,0.07253275]
[1756155198475,0.53822856,109940.0,109930.0,0.07253275]
[1756155198679,0.1819505,109920.0,109910.0,0.14558275]
[1756155198884,0.1819505,109920.0,109910.0,0.33337275]
[1756155199090,0.1819505,109920.0,109910.0,0.33385273]
[1756155199305,0.5583404,109920.0,109910.0,0.14301273]
[1756155199511,0.5219505,109920.0,109910.0,0.14301273]
[1756155199923,0.53619393,109920.0,109910.0,0.15036731]
[1756155200135,0.19619393,109920.0,109910.0,0.15136731]
[1756155200550,0.19619393,109920.0,109910.0,0.14909273]
[1756155200759,0.19619393,109920.0,109910.0,0.07147998]
[1756155200969,0.23400817,109920.0,109910.0,0.07147998]
[1756155201183,0.19619393,109920.0,109910.0,0.07147998]
[1756155201812,0.53826393,109920.0,109910.0,0.00147998]
[1756155202442,0.5240205,109920.0,109910.0,0.00347998]
[1756155202859,0.5219505,109920.0,109910.0,0.00347998]
[1756155204339,0.5219505,109920.0,109910.0,0.00550998]
[1756155204543,0.34,109920.0,109910.0,0.19280162]
[1756155204707,0.18194845,109930.0,109920.0,0.1819505]
[1756155204904,0.02519307,109940.0,109930.0,0.18193395]
[1756155205115,0.002,109940.0,109930.0,0.18701395]
[1756155205333,0.002,109940.0,109930.0,0.19076]
[1756155205569,0.00411,109940.0,109930.0,0.19076]
[1756155205792,0.00411,109940.0,109920.0,0.07]
[1756155206014,0.0074716,109940.0,109920.0,0.26176]
[1756155206197,0.0073816,109940.0,109920.0,0.26176]
[1756155206455,0.02689491,109940.0,109920.0,0.44677914]
[1756155206674,0.01651288,109940.0,109920.0,0.07407]
[1756155206859,0.05516417,109940.0,109930.0,0.19072]
[1756155207066,0.05427417,109940.0,109920.0,0.26172]
[1756155207305,0.08127781,109940.0,109920.0,0.26072]
[1756155207506,0.003,109940.0,109920.0,0.26072]
[1756155207705,0.005,109940.0,109920.0,0.07]
[1756155207910,0.005,109940.0,109920.0,0.26072]
[1756155208134,0.003,109940.0,109920.0,0.26072]
[1756155208553,0.02893238,109940.0,109920.0,0.28987]
[1756155208736,0.005,109940.0,109920.0,0.26375]
[1756155209118,0.005,109940.0,109930.0,0.00521]
[1756155209327,0.01962537,109940.0,109930.0,0.00521]
[1756155209528,0.04028372,109940.0,109930.0,0.00521]
[1756155209755,0.01662537,109940.0,109930.0,0.18941812]
[1756155210098,0.33790318,109950.0,109920.0,0.26375]
[1756155210303,0.41817213,109950.0,109920.0,0.07307]
[1756155210507,0.34621851,109950.0,109930.0,0.001]
[1756155210657,0.34621851,109950.0,109930.0,0.00407]
[1756155211065,0.36914711,109950.0,109930.0,0.001]
[1756155211292,0.36914711,109950.0,109920.0,0.07]
[1756155211478,0.002,109940.0,109920.0,0.07]
[1756155211797,0.37807282,109950.0,109920.0,0.07]
[1756155212016,0.34,109930.0,109910.0,0.26668273]
[1756155212247,0.35662537,109930.0,109910.0,0.26668273]
[1756155212452,0.35662537,109930.0,109910.0,0.00047998]
[1756155212667,0.54722537,109930.0,109910.0,0.00047998]
[1756155212878,0.54724984,109930.0,109910.0,0.00047998]
[1756155213087,0.07137482,109930.0,109910.0,0.00047998]
[1756155213285,0.26197482,109930.0,109910.0,0.00047998]
[1756155213704,0.07237105,109930.0,109910.0,0.00047998]
[1756155213915,0.07237105,109930.0,109920.0,0.00521]
[1756155213916,0.01764607,109930.0,109920.0,0.00521]
[1756155214120,0.01764607,109930.0,109920.0,0.00307]
[1756155214325,0.01964607,109930.0,109910.0,0.19103998]
[1756155214536,0.01864607,109930.0,109910.0,0.19103998]
[1756155214749,0.07357068,109930.0,109910.0,0.19103998]
[1756155214966,0.07557068,109930.0,109910.0,0.00047998]
[1756155215382,0.26609068,109930.0,109910.0,0.00147998]
[1756155215619,0.24944461,109930.0,109910.0,0.00147998]
[1756155215816,0.24944461,109930.0,109910.0,0.00047998]
[1756155216035,0.05592461,109930.0,109910.0,0.00047998]
[1756155216255,0.2606886,109930.0,109910.0,0.00047998]
[1756155216490,0.0701686,109930.0,109910.0,0.00354998]
[1756155216744,0.20576399,109930.0,109910.0,0.00354998]
[1756155216967,0.01824399,109930.0,109920.0,0.00307]
[1756155217190,0.01724399,109930.0,109920.0,0.00307]
[1756155217434,0.01724399,109930.0,109910.0,0.00047998]
[1756155217651,0.07201639,109930.0,109910.0,0.00047998]
[1756155217882,5.579954,109920.0,109910.0,0.00047998]
[1756155218112,5.182594,109920.0,109910.0,0.00047998]
[1756155218356,0.34,109920.0,109910.0,0.00047998]
[1756155219061,0.34,109920.0,109910.0,0.00568998]
[1756155219343,0.342,109920.0,109910.0,0.00568998]
[1756155219570,0.34,109910.0,109890.0,0.45411237]
[1756155219793,0.34,109910.0,109900.0,0.00214]
[1756155220019,0.34,109910.0,109900.0,0.18412362]
[1756155220263,0.001,109920.0,109900.0,0.18412362]
[1756155220485,0.001,109920.0,109910.0,0.37468164]
[1756155220730,0.002,109920.0,109910.0,0.44707981]
[1756155221187,0.001,109920.0,109900.0,0.07]
[1756155221609,0.001,109920.0,109900.0,0.2624]
[1756155221825,0.001,109920.0,109900.0,0.07]
[1756155221826,0.00211,109910.0,109900.0,0.07]
[1756155222033,0.00211,109910.0,109890.0,0.190544]
[1756155222436,0.00309,109920.0,109890.0,0.191544]
[1756155222557,0.00309,109920.0,109890.0,0.191504]
[1756155222776,0.00309,109920.0,109890.0,0.000144]
[1756155223201,0.1904,109930.0,109900.0,0.001]
[1756155223398,0.19036,109920.0,109900.0,0.001]
[1756155223719,0.34211,109910.0,109890.0,0.000144]
[1756155223923,4.997314,109910.0,109890.0,0.000144]
[1756155224116,0.3452,109910.0,109890.0,0.000144]
[1756155224337,0.39411723,109910.0,109890.0,0.000144]
[1756155224740,0.342,109920.0,109890.0,0.003214]
[1756155224944,0.53032,109920.0,109890.0,0.000144]
[1756155225183,0.53028,109920.0,109890.0,0.18441796]
[1756155225389,0.003,109910.0,109890.0,0.003214]
[1756155225545,0.003,109910.0,109890.0,0.005489]
[1756155225743,0.003,109910.0,109890.0,0.000144]
[1756155225943,0.00211,109900.0,109890.0,0.000144]
[1756155226413,0.0052,109900.0,109890.0,0.000144]
[1756155226851,0.01635622,109900.0,109890.0,0.000144]
[1756155227615,0.01424622,109900.0,109890.0,0.000144]
[1756155227861,0.01424622,109900.0,109890.0,0.005354]
[1756155228128,0.01424622,109900.0,109890.0,0.006354]
[1756155228325,0.01424622,109900.0,109890.0,0.009629]
[1756155228551,0.01424622,109900.0,109890.0,0.010629]
[1756155229570,0.01424622,109900.0,109890.0,0.008354]
[1756155229804,0.01424622,109900.0,109890.0,0.003144]
[1756155230819,0.01424622,109900.0,109890.0,0.2123532]
[1756155231096,0.01424442,109920.0,109890.0,0.18835359]
[1756155231363,0.001,109900.0,109890.0,0.20173261]
[1756155231643,0.34309,109930.0,109890.0,0.195514]
[1756155231894,5.048529,109930.0,109890.0,0.3754426]
[1756155232180,5.048529,109930.0,109890.0,0.196474]
[1756155232181,0.40477621,109930.0,109890.0,0.196474]
[1756155232421,0.00309,109920.0,109890.0,0.004284]
[1756155232660,0.01145121,109920.0,109890.0,0.190264]
[1756155233116,0.01145121,109920.0,109890.0,0.193334]
[1756155233325,0.03704083,109920.0,109890.0,0.193334]
[1756155233528,0.02558962,109920.0,109890.0,0.37533178]
[1756155234083,0.02558962,109920.0,109890.0,0.193294]
[1756155234304,0.053325,109930.0,109890.0,0.37529343]
[1756155234531,0.34,109910.0,109890.0,0.000144]
[1756155235353,0.19513,109920.0,109900.0,0.07778275]
[1756155235354,0.001,109920.0,109900.0,0.07778275]
[1756155235547,0.001,109920.0,109900.0,0.26782275]
[1756155235764,0.53004,109940.0,109900.0,0.26471275]
[1756155235964,0.34,109920.0,109900.0,0.07778275]
[1756155236171,0.34836968,109920.0,109900.0,0.07778275]
[1756155236373,0.34,109920.0,109900.0,0.07778275]
[1756155236567,0.34,109920.0,109900.0,0.25976442]
[1756155236790,0.34,109920.0,109900.0,0.07778275]
[1756155237048,0.034,109920.0,109900.0,0.00525]
[1756155237251,0.04237449,109920.0,109890.0,0.190144]
[1756155237407,0.03708,109920.0,109890.0,0.193254]
[1756155237609,0.034,109920.0,109890.0,0.003254]
[1756155237814,0.00278,109910.0,109890.0,0.190104]
[1756155238013,0.23820474,109920.0,109890.0,0.190104]
[1756155238221,0.00202,109900.0,109890.0,0.000144]
[1756155238583,0.01675438,109910.0,109890.0,0.005284]
[1756155238792,0.02335429,109910.0,109890.0,0.005284]
[1756155239233,0.01675438,109910.0,109890.0,0.005284]
[1756155239453,0.01675438,109910.0,109890.0,0.002174]
[1756155239842,0.01675438,109910.0,109890.0,0.005284]
[1756155240294,0.02304289,109910.0,109890.0,0.000144]
[1756155240466,4.994914,109900.0,109890.0,0.001144]
[1756155240710,5.01795593,109900.0,109890.0,0.000144]
[1756155240926,5.20783593,109900.0,109890.0,0.000144]
[1756155241098,5.20784581,109900.0,109890.0,0.001144]
[1756155241330,5.3089637,109900.0,109890.0,0.003144]
[1756155241836,5.02746661,109900.0,109890.0,0.002144]
[1756155242097,4.94059696,109900.0,109890.0,0.001144]
[1756155242493,5.11614872,109900.0,109890.0,0.001144]
[1756155242901,0.46403472,109900.0,109890.0,0.001144]
[1756155243137,0.27423472,109900.0,109890.0,0.001144]
[1756155243371,0.27623472,109900.0,109890.0,0.001144]
[1756155243580,0.26994717,109900.0,109890.0,0.006284]
[1756155243775,0.26994717,109900.0,109890.0,0.26081693]
[1756155243776,0.02713356,109900.0,109890.0,0.26081693]
[1756155244007,0.02713356,109900.0,109890.0,0.51230904]
[1756155244008,0.01875571,109900.0,109890.0,0.51230904]
[1756155244240,0.01550571,109900.0,109890.0,0.51230904]
[1756155244468,0.00685571,109900.0,109890.0,0.51230904]
[1756155244691,0.07988629,109970.0,109890.0,0.51230904]
[1756155244692,0.05596885,109970.0,109940.0,0.1819174]
[1756155244903,0.03397557,109970.0,109950.0,0.37165957]
[1756155245117,0.03397557,109970.0,109950.0,0.37066021]
[1756155245604,0.05778254,109970.0,109950.0,0.18876]
[1756155246012,0.05978254,109970.0,109950.0,0.37066064]
[1756155246238,0.07307098,109970.0,109960.0,0.18415787]
[1756155246450,0.05376064,109970.0,109950.0,0.37066064]
[1756155246665,0.05376064,109970.0,109960.0,0.00227355]
[1756155246878,0.05886064,109970.0,109940.0,0.37363611]
[1756155247133,0.05886064,109970.0,109950.0,0.18417427]
[1756155247134,0.05376064,109970.0,109950.0,0.18417427]
[1756155247350,0.05376064,109970.0,109950.0,0.18190051]
[1756155247553,0.0582367,109970.0,109940.0,0.18191611]
[1756155247812,0.0613167,109970.0,109960.0,0.003]
[1756155248027,0.05684064,109970.0,109960.0,0.003]
[1756155248258,0.04846042,109970.0,109950.0,0.19464]
[1756155248483,0.05582054,109970.0,109950.0,0.1926]
[1756155248707,0.05682054,109970.0,109950.0,0.1966]
[1756155249178,0.05582054,109970.0,109950.0,0.37449923]
[1756155249414,0.04438042,109970.0,109950.0,0.003]
[1756155249674,0.03809541,109970.0,109950.0,0.37449963]
[1756155249903,0.03809541,109970.0,109950.0,0.37149963]
[1756155250107,0.03809541,109970.0,109960.0,0.002]
[1756155250533,0.03909541,109970.0,109960.0,0.18588432]
[1756155250739,0.03909541,109970.0,109960.0,0.004]
[1756155250961,0.03809541,109970.0,109960.0,0.18643142]
[1756155251180,0.02385496,109970.0,109960.0,0.19933334]
[1756155251384,0.02485496,109970.0,109960.0,0.01744902]
[1756155251568,0.02485496,109970.0,109960.0,0.18948]
[1756155252226,0.02485496,109970.0,109960.0,0.18188432]
[1756155252428,0.02895496,109970.0,109960.0,0.18948]
[1756155252847,0.02895496,109970.0,109950.0,0.18944]
[1756155253062,0.02895496,109970.0,109960.0,0.001]
[1756155253278,0.02895496,109970.0,109950.0,0.18944]
[1756155253690,0.02385496,109970.0,109960.0,0.003]
[1756155253902,0.02895496,109970.0,109960.0,0.005]
[1756155254311,0.02895496,109970.0,109960.0,0.003]
[1756155254897,0.02895496,109970.0,109950.0,0.19136]
[1756155255077,0.02895496,109970.0,109950.0,0.18936]
[1756155255265,0.02587496,109970.0,109950.0,0.18936]
[1756155255665,0.02895496,109970.0,109950.0,0.18936]
[1756155255863,0.02895496,109970.0,109940.0,0.18191705]
[1756155256074,0.02895496,109970.0,109950.0,0.18932]
[1756155256297,0.02895496,109970.0,109950.0,0.001]
[1756155256499,0.02587496,109970.0,109950.0,0.001]
[1756155256703,0.00308,109960.0,109950.0,0.001]
[1756155256914,0.0051,109960.0,109950.0,0.001]
[1756155257122,0.0051,109960.0,109950.0,0.002]
[1756155257361,0.0061,109960.0,109950.0,0.002]
[1756155257567,0.0061,109960.0,109930.0,0.33185275]
[1756155257770,0.00308,109950.0,109930.0,0.25928]
[1756155257966,0.00202,109940.0,109930.0,0.25928]
[1756155258206,0.0051,109940.0,109910.0,0.07253275]
[1756155258402,0.0051,109940.0,109920.0,0.18924]
[1756155259562,0.00308,109930.0,109920.0,0.18924]
[1756155259768,0.00308,109930.0,109910.0,0.26169275]
[1756155259769,0.0051,109930.0,109910.0,0.26169275]
[1756155260185,0.0051,109930.0,109910.0,0.26469275]
[1756155260599,0.0051,109930.0,109910.0,0.26169275]
[1756155260759,0.0051,109930.0,109920.0,0.001]
[1756155261163,0.01934296,109930.0,109920.0,0.001]
[1756155261573,0.01934296,109930.0,109910.0,0.26283675]
[1756155261976,0.01626296,109930.0,109920.0,0.001]
[1756155262246,0.05298926,109930.0,109920.0,0.001]
[1756155262475,0.0387463,109930.0,109920.0,0.001]
[1756155262614,0.0418263,109930.0,109920.0,0.001]
[1756155263368,4.6939403,109930.0,109920.0,0.002]
[1756155263571,4.6929403,109930.0,109920.0,0.002]
[1756155263795,5.0329403,109930.0,109920.0,0.002]
[1756155264198,0.34,109920.0,109910.0,0.000144]
[1756155264400,5.08100365,109920.0,109910.0,0.000144]
[1756155264605,5.08408365,109920.0,109910.0,0.000144]
[1756155265663,5.27304365,109920.0,109910.0,0.000144]
[1756155265886,5.28729069,109920.0,109910.0,0.000144]
[1756155266110,5.30189557,109920.0,109910.0,0.000144]
[1756155266312,5.2935496,109920.0,109910.0,0.000144]
[1756155266524,5.2955496,109920.0,109910.0,0.001144]
[1756155266732,0.4544756,109920.0,109910.0,0.001144]
[1756155267372,0.45447541,109920.0,109910.0,0.001144]
[1756155267570,0.44619669,109920.0,109910.0,0.001144]
[1756155267772,0.01624704,109920.0,109910.0,0.001144]
[1756155267924,0.01724704,109920.0,109910.0,0.07367675]
[1756155268126,0.01624704,109920.0,109910.0,0.07367675]
[1756155268549,0.02245704,109920.0,109910.0,0.001144]
[1756155268765,0.05870274,109920.0,109910.0,0.001144]
[1756155269547,0.05870274,109920.0,109910.0,0.003144]
[1756155269758,0.05669274,109920.0,109910.0,0.003144]
[1756155269960,0.01724704,109920.0,109910.0,0.003144]
[1756155270174,0.01724704,109920.0,109910.0,0.001144]
[1756155270175,0.01524704,109920.0,109910.0,0.001144]
[1756155270381,0.01424704,109920.0,109910.0,0.07895133]
[1756155270657,0.01424704,109920.0,109910.0,0.27836741]
[1756155270888,0.01424704,109920.0,109910.0,0.27609283]
[1756155271107,0.01424704,109920.0,109910.0,0.34609283]
[1756155271329,0.01424704,109920.0,109910.0,0.34409283]
[1756155271562,0.341,109960.0,109930.0,0.01744902]
[1756155271781,0.35782576,109960.0,109930.0,0.38814194]
[1756155272002,0.0042,109950.0,109930.0,0.18876]
[1756155272244,0.01255746,109950.0,109930.0,0.18876]
[1756155272514,0.01255746,109950.0,109930.0,0.37069395]
[1756155272515,0.00935746,109950.0,109930.0,0.37069395]
[1756155272756,0.04429256,109950.0,109930.0,0.18876]
[1756155272983,0.00935681,109950.0,109930.0,0.18876]
[1756155273403,0.00835681,109950.0,109930.0,0.18876]
[1756155273848,0.001,109960.0,109940.0,0.1819174]
[1756155274044,0.01563047,109960.0,109930.0,0.37069377]
[1756155274244,0.03808925,109960.0,109930.0,0.37269246]
[1756155274516,0.001,109950.0,109940.0,0.18864]
[1756155274717,0.0052,109950.0,109930.0,0.18864]
[1756155274923,0.01036027,109950.0,109930.0,0.19064]
[1756155276328,0.00936027,109950.0,109930.0,0.18864]
[1756155276843,0.00936027,109950.0,109940.0,0.002]
[1756155277050,0.00936027,109950.0,109930.0,0.18864]
[1756155277260,0.00936027,109950.0,109930.0,0.37057381]
[1756155277529,0.02359993,109950.0,109930.0,0.37257381]
[1756155277933,0.02359993,109950.0,109930.0,0.37057381]
[1756155278183,0.02359993,109950.0,109940.0,0.002]
[1756155280092,0.02359993,109950.0,109930.0,0.37157381]
[1756155280339,0.02459993,109950.0,109930.0,0.37457381]
[1756155280551,0.02459993,109950.0,109940.0,0.1819174]
[1756155280552,0.02359993,109950.0,109940.0,0.1819174]
[1756155280768,0.01423966,109950.0,109940.0,0.1819174]
[1756155281160,0.01423966,109950.0,109940.0,0.1839174]
[1756155281781,0.01423966,109950.0,109940.0,0.3722374]
[1756155282422,0.02700697,109970.0,109940.0,0.3722374]
[1756155282634,0.02700697,109970.0,109930.0,0.001]
[1756155282635,0.00521,109950.0,109930.0,0.001]
[1756155282855,4.656314,109940.0,109930.0,0.001]
[1756155283056,0.09207965,109940.0,109930.0,0.001]
[1756155283267,4.657324,109940.0,109930.0,0.001]
[1756155283467,4.657324,109940.0,109910.0,0.001144]
[1756155283683,4.655314,109930.0,109910.0,0.001144]
[1756155283913,0.07,109950.0,109910.0,0.30086175]
[1756155284095,0.07,109950.0,109910.0,0.001144]
[1756155284096,0.00201,109920.0,109910.0,0.001144]
[1756155285578,4.654124,109920.0,109890.0,0.19971775]
[1756155285782,4.652114,109910.0,109890.0,0.19971775]
[1756155285989,0.00201,109900.0,109890.0,0.19971775]
[1756155286395,0.00434389,109920.0,109890.0,0.20167775]
[1756155286603,0.01424613,109900.0,109890.0,0.48979775]
[1756155286809,0.00434389,109920.0,109890.0,0.48979775]
[1756155286810,0.00434389,109920.0,109890.0,0.30167775]
[1756155287019,0.00334389,109920.0,109890.0,0.42666628]
[1756155287224,0.01424598,109900.0,109890.0,0.42666628]
[1756155287428,0.00434389,109920.0,109890.0,0.42666628]
[1756155287616,0.00434389,109920.0,109900.0,0.29124]
[1756155287617,0.00114389,109920.0,109900.0,0.29124]
[1756155287853,0.00014389,109920.0,109900.0,0.29124]
[1756155288093,0.01438899,109920.0,109910.0,0.098984]
[1756155288301,0.01438899,109920.0,109910.0,0.29870175]
[1756155288719,0.01738899,109920.0,109910.0,0.29870175]
[1756155288958,0.01438899,109920.0,109910.0,0.29870175]
[1756155289369,0.01438899,109920.0,109910.0,0.48674175]
[1756155289842,0.01438899,109920.0,109910.0,0.48974175]
[1756155290050,0.657076,109960.0,109920.0,0.097024]
[1756155290051,0.188,109960.0,109920.0,0.097024]
[1756155290276,0.01424285,109940.0,109920.0,0.29674175]
[1756155290499,0.01424285,109940.0,109910.0,0.37700706]
[1756155290500,0.00047998,109960.0,109930.0,0.29870175]
[1756155290716,4.652114,109950.0,109930.0,0.29674175]
[1756155290932,0.01424203,109950.0,109930.0,0.29674175]
[1756155291173,0.01424203,109950.0,109930.0,0.29990175]
[1756155291624,4.654124,109940.0,109920.0,0.48466175]
[1756155291855,0.08887965,109940.0,109920.0,0.097024]
[1756155292097,0.00521,109940.0,109920.0,0.29674175]
[1756155292339,0.00521,109940.0,109920.0,0.097024]
[1756155292610,0.00521,109940.0,109890.0,0.4392745]
[1756155292611,0.0032,109930.0,109890.0,0.4392745]
[1756155292920,4.652114,109930.0,109890.0,0.36674175]
[1756155293171,4.652114,109930.0,109900.0,0.20287775]
[1756155293172,0.0032,109930.0,109900.0,0.20287775]
[1756155293405,0.158456,109950.0,109920.0,0.002]
[1756155293590,0.00201,109930.0,109920.0,0.002]
[1756155293892,4.654124,109930.0,109900.0,0.38751775]
[1756155294116,0.00521,109930.0,109920.0,0.00047998]
[1756155294348,0.34,109940.0,109920.0,0.00047998]
[1756155294562,0.00201,109930.0,109920.0,0.00047998]
[1756155295256,0.00521,109930.0,109920.0,0.00047998]
[1756155295458,0.01945413,109930.0,109920.0,0.00047998]
[1756155295665,0.05539954,109930.0,109920.0,0.00147998]
[1756155296894,5.04751354,109930.0,109920.0,0.00147998]
[1756155297944,5.00836813,109930.0,109920.0,0.00147998]
[1756155298152,0.35941413,109930.0,109920.0,0.00147998]
[1756155299020,5.01152813,109930.0,109920.0,0.00147998]
[1756155300083,5.01782885,109930.0,109920.0,0.00147998]
[1756155300350,5.20538885,109930.0,109920.0,0.00147998]
[1756155300581,5.01782885,109930.0,109920.0,0.00147998]
[1756155300798,5.1046985,109930.0,109920.0,0.00147998]
[1756155301016,5.10470165,109930.0,109920.0,0.00147998]
[1756155301225,5.012662,109930.0,109920.0,0.00147998]
[1756155301438,4.992114,109930.0,109920.0,0.00147998]
[1756155301654,4.997254,109930.0,109920.0,0.00147998]
[1756155301862,5.00355867,109930.0,109920.0,0.00147998]
[1756155302087,5.00039867,109930.0,109920.0,0.00147998]
[1756155302307,5.07898365,109930.0,109920.0,0.00147998]
[1756155302552,0.42686965,109930.0,109920.0,0.00353998]
[1756155302759,0.45210488,109930.0,109920.0,0.00353998]
[1756155302965,0.46832985,109930.0,109920.0,0.00147998]
[1756155303395,0.46634985,109930.0,109920.0,0.00659998]
[1756155303617,0.3794802,109930.0,109920.0,0.10362398]
[1756155304104,0.3794802,109930.0,109920.0,0.48756661]
[1756155304105,0.02523523,109930.0,109920.0,0.48756661]
[1756155304344,0.06503922,109970.0,109950.0,0.097024]
[1756155304560,0.06922241,109970.0,109960.0,0.00512]
[1756155304784,0.06922241,109970.0,109960.0,0.102144]
[1756155305002,0.0629112,109970.0,109960.0,0.55855237]
[1756155305207,0.0629112,109970.0,109960.0,0.57372784]
[1756155305424,0.0629112,109970.0,109960.0,0.39184352]
[1756155305637,0.06920232,109970.0,109960.0,0.3743945]
[1756155305847,0.06920232,109970.0,109960.0,0.30086175]
[1756155306066,0.06305514,109970.0,109960.0,0.30086175]
[1756155306283,0.06305514,109970.0,109950.0,0.29674175]
[1756155306507,4.992114,109960.0,109950.0,0.19971775]
[1756155306733,0.45409463,109960.0,109940.0,0.354264]
[1756155306948,0.34,109950.0,109930.0,0.284264]
[1756155307172,0.00198,109940.0,109910.0,0.354264]
[1756155307386,4.652114,109930.0,109910.0,0.25724]
[1756155307604,0.34,109920.0,109910.0,0.18724]
[1756155307817,0.35682991,109920.0,109900.0,0.48394175]
[1756155308069,0.35682991,109920.0,109910.0,0.097024]
[1756155308279,0.35682991,109920.0,109910.0,0.099084]
[1756155308280,0.3928289,109920.0,109910.0,0.099084]
[1756155308488,0.3928289,109920.0,109910.0,0.097024]
[1756155308489,0.0528289,109920.0,109910.0,0.097024]
[1756155308708,0.01682991,109920.0,109900.0,0.48394175]
[1756155308945,4.67408391,109920.0,109910.0,0.00447998]
[1756155309160,4.67092391,109920.0,109910.0,0.00447998]
[1756155309373,4.653114,109920.0,109910.0,0.00447998]
[1756155309584,0.01783164,109920.0,109910.0,0.00447998]
[1756155309798,0.01683164,109920.0,109910.0,0.10662398]
[1756155310010,0.01683164,109920.0,109910.0,0.30634173]
[1756155310244,0.01783164,109920.0,109910.0,0.30234173]
[1756155310493,0.01783366,109920.0,109910.0,0.30234173]
[1756155310700,0.01783366,109920.0,109910.0,0.30534173]
[1756155310910,0.01783366,109920.0,109910.0,0.30234173]
[1756155311121,0.001,109920.0,109910.0,0.30234173]
[1756155311326,0.01424382,109930.0,109920.0,0.19971775]
[1756155311540,0.01424382,109930.0,109920.0,0.48890175]
[1756155311775,0.03107754,109930.0,109920.0,0.66985225]
[1756155311986,0.01424382,109930.0,109920.0,0.66985225]
[1756155312197,0.34,109960.0,109930.0,0.04871775]
[1756155312413,0.37157782,109960.0,109930.0,0.20077775]
[1756155312624,0.37157782,109960.0,109940.0,0.19006]
[1756155312841,0.34,109940.0,109930.0,0.48174175]
[1756155313046,0.45213576,109940.0,109930.0,0.48170175]
[1756155313291,0.36526611,109940.0,109930.0,0.097024]
[1756155313882,0.01684151,109940.0,109930.0,0.29986175]
[1756155314311,0.01882151,109940.0,109930.0,0.097024]
[1756155314516,0.02725195,109940.0,109930.0,0.100024]
[1756155314723,0.02627195,109940.0,109930.0,0.30374175]
[1756155314924,0.02627195,109940.0,109930.0,0.30774175]
[1756155315138,0.02527195,109940.0,109930.0,0.30174175]
[1756155315285,0.02526152,109940.0,109930.0,0.30174175]
[1756155315485,0.02626152,109940.0,109930.0,0.005]
[1756155315699,0.02824152,109940.0,109930.0,0.005]
[1756155315899,0.04050314,109940.0,109930.0,0.29974175]
[1756155316307,0.0404996,109940.0,109930.0,0.29974175]
[1756155316960,0.040492,109940.0,109930.0,0.49170175]
[1756155317274,0.04049364,109940.0,109930.0,0.48958175]
[1756155317659,0.03207959,109940.0,109930.0,0.49164175]
[1756155317933,0.03207959,109940.0,109930.0,0.48958175]
[1756155318372,0.03207959,109940.0,109930.0,0.49164175]
[1756155318527,0.03207959,109940.0,109930.0,0.49470175]
[1756155318729,0.03207959,109940.0,109930.0,0.105024]
[1756155318967,0.03721959,109940.0,109930.0,0.008]
[1756155319113,0.04562461,109940.0,109930.0,0.008]
[1756155319328,0.04702707,109940.0,109930.0,0.008]
[1756155319552,0.04702707,109940.0,109930.0,0.20571775]
[1756155319767,0.04702707,109940.0,109930.0,0.19468]
[1756155319980,0.04702707,109940.0,109930.0,0.008]
[1756155320421,0.05018707,109940.0,109930.0,0.008]
[1756155320633,0.05018707,109940.0,109920.0,0.18664]
[1756155320848,0.05018707,109940.0,109910.0,0.00047998]
[1756155321058,0.34,109920.0,109910.0,0.45172538]
[1756155321267,0.34,109920.0,109910.0,0.45378538]
[1756155321268,0.35682848,109920.0,109910.0,0.45378538]
[1756155321487,0.34,109920.0,109910.0,0.45684538]
[1756155321704,0.01424162,109940.0,109920.0,0.2706454]
[1756155321926,0.02366996,109940.0,109930.0,0.4533054]
[1756155322144,0.04052636,109940.0,109930.0,0.4533054]
[1756155322353,0.0168564,109940.0,109930.0,0.4563654]